Workbook

Sheet Urmărire punctaj
B1: Introduceți aici punctajele
C3: Curs | D3: Tip | E3: Descriere | F3: Punctaj
C4: Franceză modernă | D4: Teme pentru acasă | E4: Istoria celui de-al Doilea Război Mondial | F4: 80%
C5: Programare avansată în Java | D5: Parțial | F5: 75%
C6: Spaniolă | D6: Teme pentru acasă | F6: 50%
C7: Fizică teoretică | D7: Teme pentru acasă | F7: 95%
C8: Franceză modernă | D8: Teme pentru acasă | E8: Istoria primului Război Mondial | F8: 90%
C9: Franceză modernă | D9: Teme pentru acasă | E9: Paginile 30 - 41 | F9: 80%
C10: Compunere | D10: Eseu | E10: Declarație de intenții | F10: 95%
C11: Matematică 1 | D11: Teme pentru acasă | E11: Paginile 21 și 26 | F11: 80%
C12: Matematică 2 | D12: Teme pentru acasă | E12: Paginile 15 și 18 | F12: 85%
C13: Matematică 1 | D13: Teme pentru acasă | E13: Paginile 34 - 36 | F13: 80%
C14: Matematică 2 | D14: Test grilă | F14: 95%

Sheet Performanța dvs.
B1: Performanța dvs.
C3: Total
C4: ="Ore: "&SUM(tblCursuri[Credite]) -> Ore: 24 | D4: =AVERAGE(D7:D31) -> 81% | E4: =AVERAGE(E7:E31) -> 2.71 | F4: =SUM(F7:F31) -> 2.63 | G4: =IFERROR(HLOOKUP(D4,lstMapareMedii,2),"") -> B-
C6: Cursuri | D6: % | E6: Medie | F6: MediePond | G6: Literă | H6: Performanță generală
C7: =Calcule!C6 -> Franceză modernă | D7: =Calcule!AL6 -> 83% | E7: =Calcule!AM6 -> 3.00 | F7: =IFERROR(E7*Setări!D9/SUM(tblCursuri[Credite]),"") -> 0.38 | G7: =Calcule!AN6 -> B
C8: =Calcule!C7 -> Fizică teoretică | D8: =Calcule!AL7 -> 95% | E8: =Calcule!AM7 -> 4.00 | F8: =IFERROR(E8*Setări!D10/SUM(tblCursuri[Credite]),"") -> 0.50 | G8: =Calcule!AN7 -> A
C9: =Calcule!C8 -> Matematică 1 | D9: =Calcule!AL8 -> 80% | E9: =Calcule!AM8 -> 2.67 | F9: =IFERROR(E9*Setări!D11/SUM(tblCursuri[Credite]),"") -> 0.45 | G9: =Calcule!AN8 -> B-
C10: =Calcule!C9 -> Matematică 2 | D10: =Calcule!AL9 -> 89% | E10: =Calcule!AM9 -> 3.33 | F10: =IFERROR(E10*Setări!D12/SUM(tblCursuri[Credite]),"") -> 0.56 | G10: =Calcule!AN9 -> B+
C11: =Calcule!C10 -> Programare avansată în Java | D11: =Calcule!AL10 -> 75% | E11: =Calcule!AM10 -> 2.00 | F11: =IFERROR(E11*Setări!D13/SUM(tblCursuri[Credite]),"") -> 0.42 | G11: =Calcule!AN10 -> C
C12: =Calcule!C11 -> Spaniolă | D12: =Calcule!AL11 -> 50% | E12: =Calcule!AM11 -> 0.00 | F12: =IFERROR(E12*Setări!D14/SUM(tblCursuri[Credite]),"") -> 0.00 | G12: =Calcule!AN11 -> F
C13: =Calcule!C12 -> Compunere | D13: =Calcule!AL12 -> 95% | E13: =Calcule!AM12 -> 4.00 | F13: =IFERROR(E13*Setări!D15/SUM(tblCursuri[Credite]),"") -> 0.33 | G13: =Calcule!AN12 -> A
C14: =Calcule!C13 ->  | D14: =Calcule!AL13 ->  | E14: =Calcule!AM13 ->  | F14: =IFERROR(E14*Setări!D16/SUM(tblCursuri[Credite]),"") ->  | G14: =Calcule!AN13 -> 
C15: =Calcule!C14 ->  | D15: =Calcule!AL14 ->  | E15: =Calcule!AM14 ->  | F15: =IFERROR(E15*Setări!D17/SUM(tblCursuri[Credite]),"") ->  | G15: =Calcule!AN14 -> 
C16: =Calcule!C15 ->  | D16: =Calcule!AL15 ->  | E16: =Calcule!AM15 ->  | F16: =IFERROR(E16*Setări!D18/SUM(tblCursuri[Credite]),"") ->  | G16: =Calcule!AN15 -> 
C17: =Calcule!C16 ->  | D17: =Calcule!AL16 ->  | E17: =Calcule!AM16 ->  | F17: =IFERROR(E17*Setări!D19/SUM(tblCursuri[Credite]),"") ->  | G17: =Calcule!AN16 -> 
C18: =Calcule!C17 ->  | D18: =Calcule!AL17 ->  | E18: =Calcule!AM17 ->  | F18: =IFERROR(E18*Setări!D20/SUM(tblCursuri[Credite]),"") ->  | G18: =Calcule!AN17 -> 
C19: =Calcule!C18 ->  | D19: =Calcule!AL18 ->  | E19: =Calcule!AM18 ->  | F19: =IFERROR(E19*Setări!D21/SUM(tblCursuri[Credite]),"") ->  | G19: =Calcule!AN18 -> 
C20: =Calcule!C19 ->  | D20: =Calcule!AL19 ->  | E20: =Calcule!AM19 ->  | F20: =IFERROR(E20*Setări!D22/SUM(tblCursuri[Credite]),"") ->  | G20: =Calcule!AN19 -> 
C21: =Calcule!C20 ->  | D21: =Calcule!AL20 ->  | E21: =Calcule!AM20 ->  | F21: =IFERROR(E21*Setări!D23/SUM(tblCursuri[Credite]),"") ->  | G21: =Calcule!AN20 -> 
C22: =Calcule!C21 ->  | D22: =Calcule!AL21 ->  | E22: =Calcule!AM21 ->  | F22: =IFERROR(E22*Setări!D24/SUM(tblCursuri[Credite]),"") ->  | G22: =Calcule!AN21 -> 
C23: =Calcule!C22 ->  | D23: =Calcule!AL22 ->  | E23: =Calcule!AM22 ->  | F23: =IFERROR(E23*Setări!D25/SUM(tblCursuri[Credite]),"") ->  | G23: =Calcule!AN22 -> 
C24: =Calcule!C23 ->  | D24: =Calcule!AL23 ->  | E24: =Calcule!AM23 ->  | F24: =IFERROR(E24*Setări!D26/SUM(tblCursuri[Credite]),"") ->  | G24: =Calcule!AN23 -> 
C25: =Calcule!C24 ->  | D25: =Calcule!AL24 ->  | E25: =Calcule!AM24 ->  | F25: =IFERROR(E25*Setări!D27/SUM(tblCursuri[Credite]),"") ->  | G25: =Calcule!AN24 -> 
C26: =Calcule!C25 ->  | D26: =Calcule!AL25 ->  | E26: =Calcule!AM25 ->  | F26: =IFERROR(E26*Setări!D28/SUM(tblCursuri[Credite]),"") ->  | G26: =Calcule!AN25 -> 
C27: =Calcule!C26 ->  | D27: =Calcule!AL26 ->  | E27: =Calcule!AM26 ->  | F27: =IFERROR(E27*Setări!D29/SUM(tblCursuri[Credite]),"") ->  | G27: =Calcule!AN26 -> 
C28: =Calcule!C27 ->  | D28: =Calcule!AL27 ->  | E28: =Calcule!AM27 ->  | F28: =IFERROR(E28*Setări!D30/SUM(tblCursuri[Credite]),"") ->  | G28: =Calcule!AN27 -> 
C29: =Calcule!C28 ->  | D29: =Calcule!AL28 ->  | E29: =Calcule!AM28 ->  | F29: =IFERROR(E29*Setări!D31/SUM(tblCursuri[Credite]),"") ->  | G29: =Calcule!AN28 -> 
C30: =Calcule!C29 ->  | D30: =Calcule!AL29 ->  | E30: =Calcule!AM29 ->  | F30: =IFERROR(E30*Setări!D32/SUM(tblCursuri[Credite]),"") ->  | G30: =Calcule!AN29 -> 
C31: =Calcule!C30 ->  | D31: =Calcule!AL30 ->  | E31: =Calcule!AM30 ->  | F31: =IFERROR(E31*Setări!D33/SUM(tblCursuri[Credite]),"") ->  | G31: =Calcule!AN30 -> 

Sheet Setări
B1: Setări
C2: Punctaje și maparea mediilor
C3: Procent | D3: 0% | E3: 60% | F3: 63% | G3: 67% | H3: 70% | I3: 73% | J3: 77% | K3: 80% | L3: 83% | M3: 87% | N3: 90% | O3: 93% | P3: 97%
C4: Literă examen absolvire | D4: F | E4: D- | F4: D | G4: D+ | H4: C- | I4: C | J4: C+ | K4: B- | L4: B | M4: B+ | N4: A- | O4: A | P4: A+
C5: Medie | D5: 0 | E5: 0.67 | F5: 1 | G5: 1.33 | H5: 1.67 | I5: 2 | J5: 2.33 | K5: 2.67 | L5: 3 | M5: 3.33 | N5: 3.67 | O5: 4 | P5: 4
C7: Punctaje ponderate pentru până la 25 de cursuri
C8: Cursuri la care participați | D8: Credite | E8: Teme pentru acasă | F8: Eseu | G8: Test grilă | H8: Proiect | I8: Parțial | J8: Examen final | K8: Altele | L8: % total
C9: Franceză modernă | D9: 3.0 | E9: 10% | F9: 15% | G9: 15% | H9: 10% | I9: 20% | J9: 30% | L9: =SUM(tblCursuri[[#This Row],[Teme pentru acasă]:[Altele]]) -> 100%
C10: Fizică teoretică | D10: 3.0 | E10: 15% | F10: 15% | G10: 10% | H10: 10% | I10: 15% | J10: 30% | K10: 5% | L10: =SUM(tblCursuri[[#This Row],[Teme pentru acasă]:[Altele]]) -> 100%
C11: Matematică 1 | D11: 4.0 | E11: 10% | F11: 15% | G11: 15% | H11: 10% | I11: 20% | J11: 30% | L11: =SUM(tblCursuri[[#This Row],[Teme pentru acasă]:[Altele]]) -> 100%
C12: Matematică 2 | D12: 4.0 | E12: 15% | F12: 15% | G12: 10% | H12: 10% | I12: 15% | J12: 30% | K12: 5% | L12: =SUM(tblCursuri[[#This Row],[Teme pentru acasă]:[Altele]]) -> 100%
C13: Programare avansată în Java | D13: 5.0 | E13: 15% | F13: 15% | G13: 10% | H13: 10% | I13: 20% | J13: 30% | L13: =SUM(tblCursuri[[#This Row],[Teme pentru acasă]:[Altele]]) -> 100%
C14: Spaniolă | D14: 3.0 | E14: 10% | F14: 15% | G14: 17% | H14: 13% | I14: 20% | J14: 20% | K14: 5% | L14: =SUM(tblCursuri[[#This Row],[Teme pentru acasă]:[Altele]]) -> 100%
C15: Compunere | D15: 2.0 | E15: 15% | F15: 15% | G15: 12% | H15: 15% | I15: 15% | J15: 25% | K15: 3% | L15: =SUM(tblCursuri[[#This Row],[Teme pentru acasă]:[Altele]]) -> 100%

Sheet Calcule (hidden)
B1: Calcule
C2: Această foaie de lucru furnizează calcule pentru examenele de absolvire și mediile dvs. și trebuie să rămână ascunsă. Orice modificare adusă în această foaie poate duce la erori.
C4: Listă cursuri curente | D4: Punctaj (din 1) | AC4: Calcul examen absolvire
C5: Curs | D5: 1 | E5: 2 | F5: 3 | G5: 4 | H5: 5 | I5: 6 | J5: 7 | K5: 8 | L5: 9 | M5: 10 | N5: 11 | O5: 12 | P5: 13 | Q5: 14 | R5: 15 | S5: 16 | T5: 17 | U5: 18 | V5: 19 | W5: 20 | X5: 21 | Y5: 22 | Z5: 23 | AA5: 24 | AB5: 25 | AC5: =tblCursuri[[#Headers],[Teme pentru acasă]] -> Teme pentru acasă | AD5: =tblCursuri[[#Headers],[Eseu]] -> Eseu | AE5: =tblCursuri[[#Headers],[Test grilă]] -> Test grilă | AF5: =tblCursuri[[#Headers],[Proiect]] -> Proiect | AG5: =tblCursuri[[#Headers],[Parțial]] -> Parțial | AH5: =tblCursuri[[#Headers],[Examen final]] -> Examen final | AI5: =tblCursuri[[#Headers],[Altele]] -> Altele | AJ5: Total | AK5: Total puncte posibile | AL5: Total % | AM5: Puncte examen absolvire | AN5: Literă examen absolvire
C6: =IF(Setări!C9="","",Setări!C9) -> Franceză modernă | D6: =IFERROR(INDEX(tblPunctajCursuri[],MATCH($C6:$C30&D$5:AB$5,Calcule!$C$33:$C$657,0),4),"") -> 80% | E6: 90% | F6: 80% | AC6: =IFERROR(AVERAGEIFS(tblPunctajCursuri[Punctaj],tblPunctajCursuri[Curs],Calcule!$C6,tblPunctajCursuri[Tip],Calcule!AC$5)*Setări!E9,"") -> 0.08333333333 | AD6: =IFERROR(AVERAGEIFS(tblPunctajCursuri[Punctaj],tblPunctajCursuri[Curs],Calcule!$C6,tblPunctajCursuri[Tip],Calcule!AD$5)*Setări!F9,"") ->  | AE6: =IFERROR(AVERAGEIFS(tblPunctajCursuri[Punctaj],tblPunctajCursuri[Curs],Calcule!$C6,tblPunctajCursuri[Tip],Calcule!AE$5)*Setări!G9,"") ->  | AF6: =IFERROR(AVERAGEIFS(tblPunctajCursuri[Punctaj],tblPunctajCursuri[Curs],Calcule!$C6,tblPunctajCursuri[Tip],Calcule!AF$5)*Setări!H9,"") ->  | AG6: =IFERROR(AVERAGEIFS(tblPunctajCursuri[Punctaj],tblPunctajCursuri[Curs],Calcule!$C6,tblPunctajCursuri[Tip],Calcule!AG$5)*Setări!I9,"") ->  | AH6: =IFERROR(AVERAGEIFS(tblPunctajCursuri[Punctaj],tblPunctajCursuri[Curs],Calcule!$C6,tblPunctajCursuri[Tip],Calcule!AH$5)*Setări!J9,"") ->  | AI6: =IFERROR(AVERAGEIFS(tblPunctajCursuri[Punctaj],tblPunctajCursuri[Curs],Calcule!$C6,tblPunctajCursuri[Tip],Calcule!AI$5)*Setări!K9,"") ->  | AJ6: =SUM(AC6:AI6) -> 0.08333333333 | AK6: =SUMIFS(Setări!E9:K9,Calcule!AC6:AI6,">0") -> 0.1 | AL6: =IFERROR(AJ6/AK6,"") -> 83% | AM6: =IFERROR(HLOOKUP(AL6,lstMapareMedii,3),"") -> 3 | AN6: =IFERROR(HLOOKUP(AL6,lstMapareMedii,2),"") -> B
C7: =IF(Setări!C10="","",Setări!C10) -> Fizică teoretică | D7: 95% | AC7: =IFERROR(AVERAGEIFS(tblPunctajCursuri[Punctaj],tblPunctajCursuri[Curs],Calcule!$C7,tblPunctajCursuri[Tip],Calcule!AC$5)*Setări!E10,"") -> 0.1425 | AD7: =IFERROR(AVERAGEIFS(tblPunctajCursuri[Punctaj],tblPunctajCursuri[Curs],Calcule!$C7,tblPunctajCursuri[Tip],Calcule!AD$5)*Setări!F10,"") ->  | AE7: =IFERROR(AVERAGEIFS(tblPunctajCursuri[Punctaj],tblPunctajCursuri[Curs],Calcule!$C7,tblPunctajCursuri[Tip],Calcule!AE$5)*Setări!G10,"") ->  | AF7: =IFERROR(AVERAGEIFS(tblPunctajCursuri[Punctaj],tblPunctajCursuri[Curs],Calcule!$C7,tblPunctajCursuri[Tip],Calcule!AF$5)*Setări!H10,"") ->  | AG7: =IFERROR(AVERAGEIFS(tblPunctajCursuri[Punctaj],tblPunctajCursuri[Curs],Calcule!$C7,tblPunctajCursuri[Tip],Calcule!AG$5)*Setări!I10,"") ->  | AH7: =IFERROR(AVERAGEIFS(tblPunctajCursuri[Punctaj],tblPunctajCursuri[Curs],Calcule!$C7,tblPunctajCursuri[Tip],Calcule!AH$5)*Setări!J10,"") ->  | AI7: =IFERROR(AVERAGEIFS(tblPunctajCursuri[Punctaj],tblPunctajCursuri[Curs],Calcule!$C7,tblPunctajCursuri[Tip],Calcule!AI$5)*Setări!K10,"") ->  | AJ7: =SUM(AC7:AI7) -> 0.1425 | AK7: =SUMIFS(Setări!E10:K10,Calcule!AC7:AI7,">0") -> 0.15 | AL7: =IFERROR(AJ7/AK7,"") -> 95% | AM7: 4 | AN7: A
C8: =IF(Setări!C11="","",Setări!C11) -> Matematică 1 | D8: 80% | E8: 80% | AC8: =IFERROR(AVERAGEIFS(tblPunctajCursuri[Punctaj],tblPunctajCursuri[Curs],Calcule!$C8,tblPunctajCursuri[Tip],Calcule!AC$5)*Setări!E11,"") -> 0.08 | AD8: =IFERROR(AVERAGEIFS(tblPunctajCursuri[Punctaj],tblPunctajCursuri[Curs],Calcule!$C8,tblPunctajCursuri[Tip],Calcule!AD$5)*Setări!F11,"") ->  | AE8: =IFERROR(AVERAGEIFS(tblPunctajCursuri[Punctaj],tblPunctajCursuri[Curs],Calcule!$C8,tblPunctajCursuri[Tip],Calcule!AE$5)*Setări!G11,"") ->  | AF8: =IFERROR(AVERAGEIFS(tblPunctajCursuri[Punctaj],tblPunctajCursuri[Curs],Calcule!$C8,tblPunctajCursuri[Tip],Calcule!AF$5)*Setări!H11,"") ->  | AG8: =IFERROR(AVERAGEIFS(tblPunctajCursuri[Punctaj],tblPunctajCursuri[Curs],Calcule!$C8,tblPunctajCursuri[Tip],Calcule!AG$5)*Setări!I11,"") ->  | AH8: =IFERROR(AVERAGEIFS(tblPunctajCursuri[Punctaj],tblPunctajCursuri[Curs],Calcule!$C8,tblPunctajCursuri[Tip],Calcule!AH$5)*Setări!J11,"") ->  | AI8: =IFERROR(AVERAGEIFS(tblPunctajCursuri[Punctaj],tblPunctajCursuri[Curs],Calcule!$C8,tblPunctajCursuri[Tip],Calcule!AI$5)*Setări!K11,"") ->  | AJ8: 0.08 | AK8: =SUMIFS(Setări!E11:K11,Calcule!AC8:AI8,">0") -> 0.1 | AL8: 80% | AM8: 2.67 | AN8: B-
C9: =IF(Setări!C12="","",Setări!C12) -> Matematică 2 | D9: 85% | E9: 95% | AC9: =IFERROR(AVERAGEIFS(tblPunctajCursuri[Punctaj],tblPunctajCursuri[Curs],Calcule!$C9,tblPunctajCursuri[Tip],Calcule!AC$5)*Setări!E12,"") -> 0.1275 | AD9: =IFERROR(AVERAGEIFS(tblPunctajCursuri[Punctaj],tblPunctajCursuri[Curs],Calcule!$C9,tblPunctajCursuri[Tip],Calcule!AD$5)*Setări!F12,"") ->  | AE9: =IFERROR(AVERAGEIFS(tblPunctajCursuri[Punctaj],tblPunctajCursuri[Curs],Calcule!$C9,tblPunctajCursuri[Tip],Calcule!AE$5)*Setări!G12,"") -> 0.095 | AF9: =IFERROR(AVERAGEIFS(tblPunctajCursuri[Punctaj],tblPunctajCursuri[Curs],Calcule!$C9,tblPunctajCursuri[Tip],Calcule!AF$5)*Setări!H12,"") ->  | AG9: =IFERROR(AVERAGEIFS(tblPunctajCursuri[Punctaj],tblPunctajCursuri[Curs],Calcule!$C9,tblPunctajCursuri[Tip],Calcule!AG$5)*Setări!I12,"") ->  | AH9: =IFERROR(AVERAGEIFS(tblPunctajCursuri[Punctaj],tblPunctajCursuri[Curs],Calcule!$C9,tblPunctajCursuri[Tip],Calcule!AH$5)*Setări!J12,"") ->  | AI9: =IFERROR(AVERAGEIFS(tblPunctajCursuri[Punctaj],tblPunctajCursuri[Curs],Calcule!$C9,tblPunctajCursuri[Tip],Calcule!AI$5)*Setări!K12,"") ->  | AJ9: 0.2225 | AK9: =SUMIFS(Setări!E12:K12,Calcule!AC9:AI9,">0") -> 0.25 | AL9: 89% | AM9: 3.33 | AN9: B+
C10: =IF(Setări!C13="","",Setări!C13) -> Programare avansată în Java | D10: 75% | AC10: =IFERROR(AVERAGEIFS(tblPunctajCursuri[Punctaj],tblPunctajCursuri[Curs],Calcule!$C10,tblPunctajCursuri[Tip],Calcule!AC$5)*Setări!E13,"") ->  | AD10: =IFERROR(AVERAGEIFS(tblPunctajCursuri[Punctaj],tblPunctajCursuri[Curs],Calcule!$C10,tblPunctajCursuri[Tip],Calcule!AD$5)*Setări!F13,"") ->  | AE10: =IFERROR(AVERAGEIFS(tblPunctajCursuri[Punctaj],tblPunctajCursuri[Curs],Calcule!$C10,tblPunctajCursuri[Tip],Calcule!AE$5)*Setări!G13,"") ->  | AF10: =IFERROR(AVERAGEIFS(tblPunctajCursuri[Punctaj],tblPunctajCursuri[Curs],Calcule!$C10,tblPunctajCursuri[Tip],Calcule!AF$5)*Setări!H13,"") ->  | AG10: =IFERROR(AVERAGEIFS(tblPunctajCursuri[Punctaj],tblPunctajCursuri[Curs],Calcule!$C10,tblPunctajCursuri[Tip],Calcule!AG$5)*Setări!I13,"") -> 0.15 | AH10: =IFERROR(AVERAGEIFS(tblPunctajCursuri[Punctaj],tblPunctajCursuri[Curs],Calcule!$C10,tblPunctajCursuri[Tip],Calcule!AH$5)*Setări!J13,"") ->  | AI10: =IFERROR(AVERAGEIFS(tblPunctajCursuri[Punctaj],tblPunctajCursuri[Curs],Calcule!$C10,tblPunctajCursuri[Tip],Calcule!AI$5)*Setări!K13,"") ->  | AJ10: 0.15 | AK10: =SUMIFS(Setări!E13:K13,Calcule!AC10:AI10,">0") -> 0.2 | AL10: 75% | AM10: 2 | AN10: C
C11: =IF(Setări!C14="","",Setări!C14) -> Spaniolă | D11: 50% | AC11: =IFERROR(AVERAGEIFS(tblPunctajCursuri[Punctaj],tblPunctajCursuri[Curs],Calcule!$C11,tblPunctajCursuri[Tip],Calcule!AC$5)*Setări!E14,"") -> 0.05 | AD11: =IFERROR(AVERAGEIFS(tblPunctajCursuri[Punctaj],tblPunctajCursuri[Curs],Calcule!$C11,tblPunctajCursuri[Tip],Calcule!AD$5)*Setări!F14,"") ->  | AE11: =IFERROR(AVERAGEIFS(tblPunctajCursuri[Punctaj],tblPunctajCursuri[Curs],Calcule!$C11,tblPunctajCursuri[Tip],Calcule!AE$5)*Setări!G14,"") ->  | AF11: =IFERROR(AVERAGEIFS(tblPunctajCursuri[Punctaj],tblPunctajCursuri[Curs],Calcule!$C11,tblPunctajCursuri[Tip],Calcule!AF$5)*Setări!H14,"") ->  | AG11: =IFERROR(AVERAGEIFS(tblPunctajCursuri[Punctaj],tblPunctajCursuri[Curs],Calcule!$C11,tblPunctajCursuri[Tip],Calcule!AG$5)*Setări!I14,"") ->  | AH11: =IFERROR(AVERAGEIFS(tblPunctajCursuri[Punctaj],tblPunctajCursuri[Curs],Calcule!$C11,tblPunctajCursuri[Tip],Calcule!AH$5)*Setări!J14,"") ->  | AI11: =IFERROR(AVERAGEIFS(tblPunctajCursuri[Punctaj],tblPunctajCursuri[Curs],Calcule!$C11,tblPunctajCursuri[Tip],Calcule!AI$5)*Setări!K14,"") ->  | AJ11: 0.05 | AK11: =SUMIFS(Setări!E14:K14,Calcule!AC11:AI11,">0") -> 0.1 | AL11: 50% | AM11: 0 | AN11: F
C12: =IF(Setări!C15="","",Setări!C15) -> Compunere | D12: 95% | AC12: =IFERROR(AVERAGEIFS(tblPunctajCursuri[Punctaj],tblPunctajCursuri[Curs],Calcule!$C12,tblPunctajCursuri[Tip],Calcule!AC$5)*Setări!E15,"") ->  | AD12: =IFERROR(AVERAGEIFS(tblPunctajCursuri[Punctaj],tblPunctajCursuri[Curs],Calcule!$C12,tblPunctajCursuri[Tip],Calcule!AD$5)*Setări!F15,"") -> 0.1425 | AE12: =IFERROR(AVERAGEIFS(tblPunctajCursuri[Punctaj],tblPunctajCursuri[Curs],Calcule!$C12,tblPunctajCursuri[Tip],Calcule!AE$5)*Setări!G15,"") ->  | AF12: =IFERROR(AVERAGEIFS(tblPunctajCursuri[Punctaj],tblPunctajCursuri[Curs],Calcule!$C12,tblPunctajCursuri[Tip],Calcule!AF$5)*Setări!H15,"") ->  | AG12: =IFERROR(AVERAGEIFS(tblPunctajCursuri[Punctaj],tblPunctajCursuri[Curs],Calcule!$C12,tblPunctajCursuri[Tip],Calcule!AG$5)*Setări!I15,"") ->  | AH12: =IFERROR(AVERAGEIFS(tblPunctajCursuri[Punctaj],tblPunctajCursuri[Curs],Calcule!$C12,tblPunctajCursuri[Tip],Calcule!AH$5)*Setări!J15,"") ->  | AI12: =IFERROR(AVERAGEIFS(tblPunctajCursuri[Punctaj],tblPunctajCursuri[Curs],Calcule!$C12,tblPunctajCursuri[Tip],Calcule!AI$5)*Setări!K15,"") ->  | AJ12: 0.1425 | AK12: =SUMIFS(Setări!E15:K15,Calcule!AC12:AI12,">0") -> 0.15 | AL12: 95% | AM12: 4 | AN12: A
C13: =IF(Setări!C16="","",Setări!C16) ->  | AC13: =IFERROR(AVERAGEIFS(tblPunctajCursuri[Punctaj],tblPunctajCursuri[Curs],Calcule!$C13,tblPunctajCursuri[Tip],Calcule!AC$5)*Setări!E16,"") ->  | AD13: =IFERROR(AVERAGEIFS(tblPunctajCursuri[Punctaj],tblPunctajCursuri[Curs],Calcule!$C13,tblPunctajCursuri[Tip],Calcule!AD$5)*Setări!F16,"") ->  | AE13: =IFERROR(AVERAGEIFS(tblPunctajCursuri[Punctaj],tblPunctajCursuri[Curs],Calcule!$C13,tblPunctajCursuri[Tip],Calcule!AE$5)*Setări!G16,"") ->  | AF13: =IFERROR(AVERAGEIFS(tblPunctajCursuri[Punctaj],tblPunctajCursuri[Curs],Calcule!$C13,tblPunctajCursuri[Tip],Calcule!AF$5)*Setări!H16,"") ->  | AG13: =IFERROR(AVERAGEIFS(tblPunctajCursuri[Punctaj],tblPunctajCursuri[Curs],Calcule!$C13,tblPunctajCursuri[Tip],Calcule!AG$5)*Setări!I16,"") ->  | AH13: =IFERROR(AVERAGEIFS(tblPunctajCursuri[Punctaj],tblPunctajCursuri[Curs],Calcule!$C13,tblPunctajCursuri[Tip],Calcule!AH$5)*Setări!J16,"") ->  | AI13: =IFERROR(AVERAGEIFS(tblPunctajCursuri[Punctaj],tblPunctajCursuri[Curs],Calcule!$C13,tblPunctajCursuri[Tip],Calcule!AI$5)*Setări!K16,"") ->  | AJ13: =SUM(AC13:AI13) -> 0 | AK13: =SUMIFS(Setări!E16:K16,Calcule!AC13:AI13,">0") -> 0 | AL13: =IFERROR(AJ13/AK13,"") -> 
C14: =IF(Setări!C17="","",Setări!C17) ->  | AC14: =IFERROR(AVERAGEIFS(tblPunctajCursuri[Punctaj],tblPunctajCursuri[Curs],Calcule!$C14,tblPunctajCursuri[Tip],Calcule!AC$5)*Setări!E17,"") ->  | AD14: =IFERROR(AVERAGEIFS(tblPunctajCursuri[Punctaj],tblPunctajCursuri[Curs],Calcule!$C14,tblPunctajCursuri[Tip],Calcule!AD$5)*Setări!F17,"") ->  | AE14: =IFERROR(AVERAGEIFS(tblPunctajCursuri[Punctaj],tblPunctajCursuri[Curs],Calcule!$C14,tblPunctajCursuri[Tip],Calcule!AE$5)*Setări!G17,"") ->  | AF14: =IFERROR(AVERAGEIFS(tblPunctajCursuri[Punctaj],tblPunctajCursuri[Curs],Calcule!$C14,tblPunctajCursuri[Tip],Calcule!AF$5)*Setări!H17,"") ->  | AG14: =IFERROR(AVERAGEIFS(tblPunctajCursuri[Punctaj],tblPunctajCursuri[Curs],Calcule!$C14,tblPunctajCursuri[Tip],Calcule!AG$5)*Setări!I17,"") ->  | AH14: =IFERROR(AVERAGEIFS(tblPunctajCursuri[Punctaj],tblPunctajCursuri[Curs],Calcule!$C14,tblPunctajCursuri[Tip],Calcule!AH$5)*Setări!J17,"") ->  | AI14: =IFERROR(AVERAGEIFS(tblPunctajCursuri[Punctaj],tblPunctajCursuri[Curs],Calcule!$C14,tblPunctajCursuri[Tip],Calcule!AI$5)*Setări!K17,"") ->  | AJ14: 0 | AK14: =SUMIFS(Setări!E17:K17,Calcule!AC14:AI14,">0") -> 0
C15: =IF(Setări!C18="","",Setări!C18) ->  | AC15: =IFERROR(AVERAGEIFS(tblPunctajCursuri[Punctaj],tblPunctajCursuri[Curs],Calcule!$C15,tblPunctajCursuri[Tip],Calcule!AC$5)*Setări!E18,"") ->  | AD15: =IFERROR(AVERAGEIFS(tblPunctajCursuri[Punctaj],tblPunctajCursuri[Curs],Calcule!$C15,tblPunctajCursuri[Tip],Calcule!AD$5)*Setări!F18,"") ->  | AE15: =IFERROR(AVERAGEIFS(tblPunctajCursuri[Punctaj],tblPunctajCursuri[Curs],Calcule!$C15,tblPunctajCursuri[Tip],Calcule!AE$5)*Setări!G18,"") ->  | AF15: =IFERROR(AVERAGEIFS(tblPunctajCursuri[Punctaj],tblPunctajCursuri[Curs],Calcule!$C15,tblPunctajCursuri[Tip],Calcule!AF$5)*Setări!H18,"") ->  | AG15: =IFERROR(AVERAGEIFS(tblPunctajCursuri[Punctaj],tblPunctajCursuri[Curs],Calcule!$C15,tblPunctajCursuri[Tip],Calcule!AG$5)*Setări!I18,"") ->  | AH15: =IFERROR(AVERAGEIFS(tblPunctajCursuri[Punctaj],tblPunctajCursuri[Curs],Calcule!$C15,tblPunctajCursuri[Tip],Calcule!AH$5)*Setări!J18,"") ->  | AI15: =IFERROR(AVERAGEIFS(tblPunctajCursuri[Punctaj],tblPunctajCursuri[Curs],Calcule!$C15,tblPunctajCursuri[Tip],Calcule!AI$5)*Setări!K18,"") ->  | AJ15: 0 | AK15: =SUMIFS(Setări!E18:K18,Calcule!AC15:AI15,">0") -> 0
C16: =IF(Setări!C19="","",Setări!C19) ->  | AC16: =IFERROR(AVERAGEIFS(tblPunctajCursuri[Punctaj],tblPunctajCursuri[Curs],Calcule!$C16,tblPunctajCursuri[Tip],Calcule!AC$5)*Setări!E19,"") ->  | AD16: =IFERROR(AVERAGEIFS(tblPunctajCursuri[Punctaj],tblPunctajCursuri[Curs],Calcule!$C16,tblPunctajCursuri[Tip],Calcule!AD$5)*Setări!F19,"") ->  | AE16: =IFERROR(AVERAGEIFS(tblPunctajCursuri[Punctaj],tblPunctajCursuri[Curs],Calcule!$C16,tblPunctajCursuri[Tip],Calcule!AE$5)*Setări!G19,"") ->  | AF16: =IFERROR(AVERAGEIFS(tblPunctajCursuri[Punctaj],tblPunctajCursuri[Curs],Calcule!$C16,tblPunctajCursuri[Tip],Calcule!AF$5)*Setări!H19,"") ->  | AG16: =IFERROR(AVERAGEIFS(tblPunctajCursuri[Punctaj],tblPunctajCursuri[Curs],Calcule!$C16,tblPunctajCursuri[Tip],Calcule!AG$5)*Setări!I19,"") ->  | AH16: =IFERROR(AVERAGEIFS(tblPunctajCursuri[Punctaj],tblPunctajCursuri[Curs],Calcule!$C16,tblPunctajCursuri[Tip],Calcule!AH$5)*Setări!J19,"") ->  | AI16: =IFERROR(AVERAGEIFS(tblPunctajCursuri[Punctaj],tblPunctajCursuri[Curs],Calcule!$C16,tblPunctajCursuri[Tip],Calcule!AI$5)*Setări!K19,"") ->  | AJ16: 0 | AK16: =SUMIFS(Setări!E19:K19,Calcule!AC16:AI16,">0") -> 0
C17: =IF(Setări!C20="","",Setări!C20) ->  | AC17: =IFERROR(AVERAGEIFS(tblPunctajCursuri[Punctaj],tblPunctajCursuri[Curs],Calcule!$C17,tblPunctajCursuri[Tip],Calcule!AC$5)*Setări!E20,"") ->  | AD17: =IFERROR(AVERAGEIFS(tblPunctajCursuri[Punctaj],tblPunctajCursuri[Curs],Calcule!$C17,tblPunctajCursuri[Tip],Calcule!AD$5)*Setări!F20,"") ->  | AE17: =IFERROR(AVERAGEIFS(tblPunctajCursuri[Punctaj],tblPunctajCursuri[Curs],Calcule!$C17,tblPunctajCursuri[Tip],Calcule!AE$5)*Setări!G20,"") ->  | AF17: =IFERROR(AVERAGEIFS(tblPunctajCursuri[Punctaj],tblPunctajCursuri[Curs],Calcule!$C17,tblPunctajCursuri[Tip],Calcule!AF$5)*Setări!H20,"") ->  | AG17: =IFERROR(AVERAGEIFS(tblPunctajCursuri[Punctaj],tblPunctajCursuri[Curs],Calcule!$C17,tblPunctajCursuri[Tip],Calcule!AG$5)*Setări!I20,"") ->  | AH17: =IFERROR(AVERAGEIFS(tblPunctajCursuri[Punctaj],tblPunctajCursuri[Curs],Calcule!$C17,tblPunctajCursuri[Tip],Calcule!AH$5)*Setări!J20,"") ->  | AI17: =IFERROR(AVERAGEIFS(tblPunctajCursuri[Punctaj],tblPunctajCursuri[Curs],Calcule!$C17,tblPunctajCursuri[Tip],Calcule!AI$5)*Setări!K20,"") ->  | AJ17: 0 | AK17: =SUMIFS(Setări!E20:K20,Calcule!AC17:AI17,">0") -> 0
C18: =IF(Setări!C21="","",Setări!C21) ->  | AC18: =IFERROR(AVERAGEIFS(tblPunctajCursuri[Punctaj],tblPunctajCursuri[Curs],Calcule!$C18,tblPunctajCursuri[Tip],Calcule!AC$5)*Setări!E21,"") ->  | AD18: =IFERROR(AVERAGEIFS(tblPunctajCursuri[Punctaj],tblPunctajCursuri[Curs],Calcule!$C18,tblPunctajCursuri[Tip],Calcule!AD$5)*Setări!F21,"") ->  | AE18: =IFERROR(AVERAGEIFS(tblPunctajCursuri[Punctaj],tblPunctajCursuri[Curs],Calcule!$C18,tblPunctajCursuri[Tip],Calcule!AE$5)*Setări!G21,"") ->  | AF18: =IFERROR(AVERAGEIFS(tblPunctajCursuri[Punctaj],tblPunctajCursuri[Curs],Calcule!$C18,tblPunctajCursuri[Tip],Calcule!AF$5)*Setări!H21,"") ->  | AG18: =IFERROR(AVERAGEIFS(tblPunctajCursuri[Punctaj],tblPunctajCursuri[Curs],Calcule!$C18,tblPunctajCursuri[Tip],Calcule!AG$5)*Setări!I21,"") ->  | AH18: =IFERROR(AVERAGEIFS(tblPunctajCursuri[Punctaj],tblPunctajCursuri[Curs],Calcule!$C18,tblPunctajCursuri[Tip],Calcule!AH$5)*Setări!J21,"") ->  | AI18: =IFERROR(AVERAGEIFS(tblPunctajCursuri[Punctaj],tblPunctajCursuri[Curs],Calcule!$C18,tblPunctajCursuri[Tip],Calcule!AI$5)*Setări!K21,"") ->  | AJ18: 0 | AK18: =SUMIFS(Setări!E21:K21,Calcule!AC18:AI18,">0") -> 0
C19: =IF(Setări!C22="","",Setări!C22) ->  | AC19: =IFERROR(AVERAGEIFS(tblPunctajCursuri[Punctaj],tblPunctajCursuri[Curs],Calcule!$C19,tblPunctajCursuri[Tip],Calcule!AC$5)*Setări!E22,"") ->  | AD19: =IFERROR(AVERAGEIFS(tblPunctajCursuri[Punctaj],tblPunctajCursuri[Curs],Calcule!$C19,tblPunctajCursuri[Tip],Calcule!AD$5)*Setări!F22,"") ->  | AE19: =IFERROR(AVERAGEIFS(tblPunctajCursuri[Punctaj],tblPunctajCursuri[Curs],Calcule!$C19,tblPunctajCursuri[Tip],Calcule!AE$5)*Setări!G22,"") ->  | AF19: =IFERROR(AVERAGEIFS(tblPunctajCursuri[Punctaj],tblPunctajCursuri[Curs],Calcule!$C19,tblPunctajCursuri[Tip],Calcule!AF$5)*Setări!H22,"") ->  | AG19: =IFERROR(AVERAGEIFS(tblPunctajCursuri[Punctaj],tblPunctajCursuri[Curs],Calcule!$C19,tblPunctajCursuri[Tip],Calcule!AG$5)*Setări!I22,"") ->  | AH19: =IFERROR(AVERAGEIFS(tblPunctajCursuri[Punctaj],tblPunctajCursuri[Curs],Calcule!$C19,tblPunctajCursuri[Tip],Calcule!AH$5)*Setări!J22,"") ->  | AI19: =IFERROR(AVERAGEIFS(tblPunctajCursuri[Punctaj],tblPunctajCursuri[Curs],Calcule!$C19,tblPunctajCursuri[Tip],Calcule!AI$5)*Setări!K22,"") ->  | AJ19: 0 | AK19: =SUMIFS(Setări!E22:K22,Calcule!AC19:AI19,">0") -> 0
C20: =IF(Setări!C23="","",Setări!C23) ->  | AC20: =IFERROR(AVERAGEIFS(tblPunctajCursuri[Punctaj],tblPunctajCursuri[Curs],Calcule!$C20,tblPunctajCursuri[Tip],Calcule!AC$5)*Setări!E23,"") ->  | AD20: =IFERROR(AVERAGEIFS(tblPunctajCursuri[Punctaj],tblPunctajCursuri[Curs],Calcule!$C20,tblPunctajCursuri[Tip],Calcule!AD$5)*Setări!F23,"") ->  | AE20: =IFERROR(AVERAGEIFS(tblPunctajCursuri[Punctaj],tblPunctajCursuri[Curs],Calcule!$C20,tblPunctajCursuri[Tip],Calcule!AE$5)*Setări!G23,"") ->  | AF20: =IFERROR(AVERAGEIFS(tblPunctajCursuri[Punctaj],tblPunctajCursuri[Curs],Calcule!$C20,tblPunctajCursuri[Tip],Calcule!AF$5)*Setări!H23,"") ->  | AG20: =IFERROR(AVERAGEIFS(tblPunctajCursuri[Punctaj],tblPunctajCursuri[Curs],Calcule!$C20,tblPunctajCursuri[Tip],Calcule!AG$5)*Setări!I23,"") ->  | AH20: =IFERROR(AVERAGEIFS(tblPunctajCursuri[Punctaj],tblPunctajCursuri[Curs],Calcule!$C20,tblPunctajCursuri[Tip],Calcule!AH$5)*Setări!J23,"") ->  | AI20: =IFERROR(AVERAGEIFS(tblPunctajCursuri[Punctaj],tblPunctajCursuri[Curs],Calcule!$C20,tblPunctajCursuri[Tip],Calcule!AI$5)*Setări!K23,"") ->  | AJ20: 0 | AK20: =SUMIFS(Setări!E23:K23,Calcule!AC20:AI20,">0") -> 0
C21: =IF(Setări!C24="","",Setări!C24) ->  | AC21: =IFERROR(AVERAGEIFS(tblPunctajCursuri[Punctaj],tblPunctajCursuri[Curs],Calcule!$C21,tblPunctajCursuri[Tip],Calcule!AC$5)*Setări!E24,"") ->  | AD21: =IFERROR(AVERAGEIFS(tblPunctajCursuri[Punctaj],tblPunctajCursuri[Curs],Calcule!$C21,tblPunctajCursuri[Tip],Calcule!AD$5)*Setări!F24,"") ->  | AE21: =IFERROR(AVERAGEIFS(tblPunctajCursuri[Punctaj],tblPunctajCursuri[Curs],Calcule!$C21,tblPunctajCursuri[Tip],Calcule!AE$5)*Setări!G24,"") ->  | AF21: =IFERROR(AVERAGEIFS(tblPunctajCursuri[Punctaj],tblPunctajCursuri[Curs],Calcule!$C21,tblPunctajCursuri[Tip],Calcule!AF$5)*Setări!H24,"") ->  | AG21: =IFERROR(AVERAGEIFS(tblPunctajCursuri[Punctaj],tblPunctajCursuri[Curs],Calcule!$C21,tblPunctajCursuri[Tip],Calcule!AG$5)*Setări!I24,"") ->  | AH21: =IFERROR(AVERAGEIFS(tblPunctajCursuri[Punctaj],tblPunctajCursuri[Curs],Calcule!$C21,tblPunctajCursuri[Tip],Calcule!AH$5)*Setări!J24,"") ->  | AI21: =IFERROR(AVERAGEIFS(tblPunctajCursuri[Punctaj],tblPunctajCursuri[Curs],Calcule!$C21,tblPunctajCursuri[Tip],Calcule!AI$5)*Setări!K24,"") ->  | AJ21: 0 | AK21: =SUMIFS(Setări!E24:K24,Calcule!AC21:AI21,">0") -> 0
C22: =IF(Setări!C25="","",Setări!C25) ->  | AC22: =IFERROR(AVERAGEIFS(tblPunctajCursuri[Punctaj],tblPunctajCursuri[Curs],Calcule!$C22,tblPunctajCursuri[Tip],Calcule!AC$5)*Setări!E25,"") ->  | AD22: =IFERROR(AVERAGEIFS(tblPunctajCursuri[Punctaj],tblPunctajCursuri[Curs],Calcule!$C22,tblPunctajCursuri[Tip],Calcule!AD$5)*Setări!F25,"") ->  | AE22: =IFERROR(AVERAGEIFS(tblPunctajCursuri[Punctaj],tblPunctajCursuri[Curs],Calcule!$C22,tblPunctajCursuri[Tip],Calcule!AE$5)*Setări!G25,"") ->  | AF22: =IFERROR(AVERAGEIFS(tblPunctajCursuri[Punctaj],tblPunctajCursuri[Curs],Calcule!$C22,tblPunctajCursuri[Tip],Calcule!AF$5)*Setări!H25,"") ->  | AG22: =IFERROR(AVERAGEIFS(tblPunctajCursuri[Punctaj],tblPunctajCursuri[Curs],Calcule!$C22,tblPunctajCursuri[Tip],Calcule!AG$5)*Setări!I25,"") ->  | AH22: =IFERROR(AVERAGEIFS(tblPunctajCursuri[Punctaj],tblPunctajCursuri[Curs],Calcule!$C22,tblPunctajCursuri[Tip],Calcule!AH$5)*Setări!J25,"") ->  | AI22: =IFERROR(AVERAGEIFS(tblPunctajCursuri[Punctaj],tblPunctajCursuri[Curs],Calcule!$C22,tblPunctajCursuri[Tip],Calcule!AI$5)*Setări!K25,"") ->  | AJ22: 0 | AK22: =SUMIFS(Setări!E25:K25,Calcule!AC22:AI22,">0") -> 0
C23: =IF(Setări!C26="","",Setări!C26) ->  | AC23: =IFERROR(AVERAGEIFS(tblPunctajCursuri[Punctaj],tblPunctajCursuri[Curs],Calcule!$C23,tblPunctajCursuri[Tip],Calcule!AC$5)*Setări!E26,"") ->  | AD23: =IFERROR(AVERAGEIFS(tblPunctajCursuri[Punctaj],tblPunctajCursuri[Curs],Calcule!$C23,tblPunctajCursuri[Tip],Calcule!AD$5)*Setări!F26,"") ->  | AE23: =IFERROR(AVERAGEIFS(tblPunctajCursuri[Punctaj],tblPunctajCursuri[Curs],Calcule!$C23,tblPunctajCursuri[Tip],Calcule!AE$5)*Setări!G26,"") ->  | AF23: =IFERROR(AVERAGEIFS(tblPunctajCursuri[Punctaj],tblPunctajCursuri[Curs],Calcule!$C23,tblPunctajCursuri[Tip],Calcule!AF$5)*Setări!H26,"") ->  | AG23: =IFERROR(AVERAGEIFS(tblPunctajCursuri[Punctaj],tblPunctajCursuri[Curs],Calcule!$C23,tblPunctajCursuri[Tip],Calcule!AG$5)*Setări!I26,"") ->  | AH23: =IFERROR(AVERAGEIFS(tblPunctajCursuri[Punctaj],tblPunctajCursuri[Curs],Calcule!$C23,tblPunctajCursuri[Tip],Calcule!AH$5)*Setări!J26,"") ->  | AI23: =IFERROR(AVERAGEIFS(tblPunctajCursuri[Punctaj],tblPunctajCursuri[Curs],Calcule!$C23,tblPunctajCursuri[Tip],Calcule!AI$5)*Setări!K26,"") ->  | AJ23: 0 | AK23: =SUMIFS(Setări!E26:K26,Calcule!AC23:AI23,">0") -> 0
C24: =IF(Setări!C27="","",Setări!C27) ->  | AC24: =IFERROR(AVERAGEIFS(tblPunctajCursuri[Punctaj],tblPunctajCursuri[Curs],Calcule!$C24,tblPunctajCursuri[Tip],Calcule!AC$5)*Setări!E27,"") ->  | AD24: =IFERROR(AVERAGEIFS(tblPunctajCursuri[Punctaj],tblPunctajCursuri[Curs],Calcule!$C24,tblPunctajCursuri[Tip],Calcule!AD$5)*Setări!F27,"") ->  | AE24: =IFERROR(AVERAGEIFS(tblPunctajCursuri[Punctaj],tblPunctajCursuri[Curs],Calcule!$C24,tblPunctajCursuri[Tip],Calcule!AE$5)*Setări!G27,"") ->  | AF24: =IFERROR(AVERAGEIFS(tblPunctajCursuri[Punctaj],tblPunctajCursuri[Curs],Calcule!$C24,tblPunctajCursuri[Tip],Calcule!AF$5)*Setări!H27,"") ->  | AG24: =IFERROR(AVERAGEIFS(tblPunctajCursuri[Punctaj],tblPunctajCursuri[Curs],Calcule!$C24,tblPunctajCursuri[Tip],Calcule!AG$5)*Setări!I27,"") ->  | AH24: =IFERROR(AVERAGEIFS(tblPunctajCursuri[Punctaj],tblPunctajCursuri[Curs],Calcule!$C24,tblPunctajCursuri[Tip],Calcule!AH$5)*Setări!J27,"") ->  | AI24: =IFERROR(AVERAGEIFS(tblPunctajCursuri[Punctaj],tblPunctajCursuri[Curs],Calcule!$C24,tblPunctajCursuri[Tip],Calcule!AI$5)*Setări!K27,"") ->  | AJ24: 0 | AK24: =SUMIFS(Setări!E27:K27,Calcule!AC24:AI24,">0") -> 0
C25: =IF(Setări!C28="","",Setări!C28) ->  | AC25: =IFERROR(AVERAGEIFS(tblPunctajCursuri[Punctaj],tblPunctajCursuri[Curs],Calcule!$C25,tblPunctajCursuri[Tip],Calcule!AC$5)*Setări!E28,"") ->  | AD25: =IFERROR(AVERAGEIFS(tblPunctajCursuri[Punctaj],tblPunctajCursuri[Curs],Calcule!$C25,tblPunctajCursuri[Tip],Calcule!AD$5)*Setări!F28,"") ->  | AE25: =IFERROR(AVERAGEIFS(tblPunctajCursuri[Punctaj],tblPunctajCursuri[Curs],Calcule!$C25,tblPunctajCursuri[Tip],Calcule!AE$5)*Setări!G28,"") ->  | AF25: =IFERROR(AVERAGEIFS(tblPunctajCursuri[Punctaj],tblPunctajCursuri[Curs],Calcule!$C25,tblPunctajCursuri[Tip],Calcule!AF$5)*Setări!H28,"") ->  | AG25: =IFERROR(AVERAGEIFS(tblPunctajCursuri[Punctaj],tblPunctajCursuri[Curs],Calcule!$C25,tblPunctajCursuri[Tip],Calcule!AG$5)*Setări!I28,"") ->  | AH25: =IFERROR(AVERAGEIFS(tblPunctajCursuri[Punctaj],tblPunctajCursuri[Curs],Calcule!$C25,tblPunctajCursuri[Tip],Calcule!AH$5)*Setări!J28,"") ->  | AI25: =IFERROR(AVERAGEIFS(tblPunctajCursuri[Punctaj],tblPunctajCursuri[Curs],Calcule!$C25,tblPunctajCursuri[Tip],Calcule!AI$5)*Setări!K28,"") ->  | AJ25: 0 | AK25: =SUMIFS(Setări!E28:K28,Calcule!AC25:AI25,">0") -> 0
C26: =IF(Setări!C29="","",Setări!C29) ->  | AC26: =IFERROR(AVERAGEIFS(tblPunctajCursuri[Punctaj],tblPunctajCursuri[Curs],Calcule!$C26,tblPunctajCursuri[Tip],Calcule!AC$5)*Setări!E29,"") ->  | AD26: =IFERROR(AVERAGEIFS(tblPunctajCursuri[Punctaj],tblPunctajCursuri[Curs],Calcule!$C26,tblPunctajCursuri[Tip],Calcule!AD$5)*Setări!F29,"") ->  | AE26: =IFERROR(AVERAGEIFS(tblPunctajCursuri[Punctaj],tblPunctajCursuri[Curs],Calcule!$C26,tblPunctajCursuri[Tip],Calcule!AE$5)*Setări!G29,"") ->  | AF26: =IFERROR(AVERAGEIFS(tblPunctajCursuri[Punctaj],tblPunctajCursuri[Curs],Calcule!$C26,tblPunctajCursuri[Tip],Calcule!AF$5)*Setări!H29,"") ->  | AG26: =IFERROR(AVERAGEIFS(tblPunctajCursuri[Punctaj],tblPunctajCursuri[Curs],Calcule!$C26,tblPunctajCursuri[Tip],Calcule!AG$5)*Setări!I29,"") ->  | AH26: =IFERROR(AVERAGEIFS(tblPunctajCursuri[Punctaj],tblPunctajCursuri[Curs],Calcule!$C26,tblPunctajCursuri[Tip],Calcule!AH$5)*Setări!J29,"") ->  | AI26: =IFERROR(AVERAGEIFS(tblPunctajCursuri[Punctaj],tblPunctajCursuri[Curs],Calcule!$C26,tblPunctajCursuri[Tip],Calcule!AI$5)*Setări!K29,"") ->  | AJ26: 0 | AK26: =SUMIFS(Setări!E29:K29,Calcule!AC26:AI26,">0") -> 0
C27: =IF(Setări!C30="","",Setări!C30) ->  | AC27: =IFERROR(AVERAGEIFS(tblPunctajCursuri[Punctaj],tblPunctajCursuri[Curs],Calcule!$C27,tblPunctajCursuri[Tip],Calcule!AC$5)*Setări!E30,"") ->  | AD27: =IFERROR(AVERAGEIFS(tblPunctajCursuri[Punctaj],tblPunctajCursuri[Curs],Calcule!$C27,tblPunctajCursuri[Tip],Calcule!AD$5)*Setări!F30,"") ->  | AE27: =IFERROR(AVERAGEIFS(tblPunctajCursuri[Punctaj],tblPunctajCursuri[Curs],Calcule!$C27,tblPunctajCursuri[Tip],Calcule!AE$5)*Setări!G30,"") ->  | AF27: =IFERROR(AVERAGEIFS(tblPunctajCursuri[Punctaj],tblPunctajCursuri[Curs],Calcule!$C27,tblPunctajCursuri[Tip],Calcule!AF$5)*Setări!H30,"") ->  | AG27: =IFERROR(AVERAGEIFS(tblPunctajCursuri[Punctaj],tblPunctajCursuri[Curs],Calcule!$C27,tblPunctajCursuri[Tip],Calcule!AG$5)*Setări!I30,"") ->  | AH27: =IFERROR(AVERAGEIFS(tblPunctajCursuri[Punctaj],tblPunctajCursuri[Curs],Calcule!$C27,tblPunctajCursuri[Tip],Calcule!AH$5)*Setări!J30,"") ->  | AI27: =IFERROR(AVERAGEIFS(tblPunctajCursuri[Punctaj],tblPunctajCursuri[Curs],Calcule!$C27,tblPunctajCursuri[Tip],Calcule!AI$5)*Setări!K30,"") ->  | AJ27: 0 | AK27: =SUMIFS(Setări!E30:K30,Calcule!AC27:AI27,">0") -> 0
C28: =IF(Setări!C31="","",Setări!C31) ->  | AC28: =IFERROR(AVERAGEIFS(tblPunctajCursuri[Punctaj],tblPunctajCursuri[Curs],Calcule!$C28,tblPunctajCursuri[Tip],Calcule!AC$5)*Setări!E31,"") ->  | AD28: =IFERROR(AVERAGEIFS(tblPunctajCursuri[Punctaj],tblPunctajCursuri[Curs],Calcule!$C28,tblPunctajCursuri[Tip],Calcule!AD$5)*Setări!F31,"") ->  | AE28: =IFERROR(AVERAGEIFS(tblPunctajCursuri[Punctaj],tblPunctajCursuri[Curs],Calcule!$C28,tblPunctajCursuri[Tip],Calcule!AE$5)*Setări!G31,"") ->  | AF28: =IFERROR(AVERAGEIFS(tblPunctajCursuri[Punctaj],tblPunctajCursuri[Curs],Calcule!$C28,tblPunctajCursuri[Tip],Calcule!AF$5)*Setări!H31,"") ->  | AG28: =IFERROR(AVERAGEIFS(tblPunctajCursuri[Punctaj],tblPunctajCursuri[Curs],Calcule!$C28,tblPunctajCursuri[Tip],Calcule!AG$5)*Setări!I31,"") ->  | AH28: =IFERROR(AVERAGEIFS(tblPunctajCursuri[Punctaj],tblPunctajCursuri[Curs],Calcule!$C28,tblPunctajCursuri[Tip],Calcule!AH$5)*Setări!J31,"") ->  | AI28: =IFERROR(AVERAGEIFS(tblPunctajCursuri[Punctaj],tblPunctajCursuri[Curs],Calcule!$C28,tblPunctajCursuri[Tip],Calcule!AI$5)*Setări!K31,"") ->  | AJ28: 0 | AK28: =SUMIFS(Setări!E31:K31,Calcule!AC28:AI28,">0") -> 0
C29: =IF(Setări!C32="","",Setări!C32) ->  | AC29: =IFERROR(AVERAGEIFS(tblPunctajCursuri[Punctaj],tblPunctajCursuri[Curs],Calcule!$C29,tblPunctajCursuri[Tip],Calcule!AC$5)*Setări!E32,"") ->  | AD29: =IFERROR(AVERAGEIFS(tblPunctajCursuri[Punctaj],tblPunctajCursuri[Curs],Calcule!$C29,tblPunctajCursuri[Tip],Calcule!AD$5)*Setări!F32,"") ->  | AE29: =IFERROR(AVERAGEIFS(tblPunctajCursuri[Punctaj],tblPunctajCursuri[Curs],Calcule!$C29,tblPunctajCursuri[Tip],Calcule!AE$5)*Setări!G32,"") ->  | AF29: =IFERROR(AVERAGEIFS(tblPunctajCursuri[Punctaj],tblPunctajCursuri[Curs],Calcule!$C29,tblPunctajCursuri[Tip],Calcule!AF$5)*Setări!H32,"") ->  | AG29: =IFERROR(AVERAGEIFS(tblPunctajCursuri[Punctaj],tblPunctajCursuri[Curs],Calcule!$C29,tblPunctajCursuri[Tip],Calcule!AG$5)*Setări!I32,"") ->  | AH29: =IFERROR(AVERAGEIFS(tblPunctajCursuri[Punctaj],tblPunctajCursuri[Curs],Calcule!$C29,tblPunctajCursuri[Tip],Calcule!AH$5)*Setări!J32,"") ->  | AI29: =IFERROR(AVERAGEIFS(tblPunctajCursuri[Punctaj],tblPunctajCursuri[Curs],Calcule!$C29,tblPunctajCursuri[Tip],Calcule!AI$5)*Setări!K32,"") ->  | AJ29: 0 | AK29: =SUMIFS(Setări!E32:K32,Calcule!AC29:AI29,">0") -> 0
C30: =IF(Setări!C33="","",Setări!C33) ->  | AC30: =IFERROR(AVERAGEIFS(tblPunctajCursuri[Punctaj],tblPunctajCursuri[Curs],Calcule!$C30,tblPunctajCursuri[Tip],Calcule!AC$5)*Setări!E33,"") ->  | AD30: =IFERROR(AVERAGEIFS(tblPunctajCursuri[Punctaj],tblPunctajCursuri[Curs],Calcule!$C30,tblPunctajCursuri[Tip],Calcule!AD$5)*Setări!F33,"") ->  | AE30: =IFERROR(AVERAGEIFS(tblPunctajCursuri[Punctaj],tblPunctajCursuri[Curs],Calcule!$C30,tblPunctajCursuri[Tip],Calcule!AE$5)*Setări!G33,"") ->  | AF30: =IFERROR(AVERAGEIFS(tblPunctajCursuri[Punctaj],tblPunctajCursuri[Curs],Calcule!$C30,tblPunctajCursuri[Tip],Calcule!AF$5)*Setări!H33,"") ->  | AG30: =IFERROR(AVERAGEIFS(tblPunctajCursuri[Punctaj],tblPunctajCursuri[Curs],Calcule!$C30,tblPunctajCursuri[Tip],Calcule!AG$5)*Setări!I33,"") ->  | AH30: =IFERROR(AVERAGEIFS(tblPunctajCursuri[Punctaj],tblPunctajCursuri[Curs],Calcule!$C30,tblPunctajCursuri[Tip],Calcule!AH$5)*Setări!J33,"") ->  | AI30: =IFERROR(AVERAGEIFS(tblPunctajCursuri[Punctaj],tblPunctajCursuri[Curs],Calcule!$C30,tblPunctajCursuri[Tip],Calcule!AI$5)*Setări!K33,"") ->  | AJ30: 0 | AK30: =SUMIFS(Setări!E33:K33,Calcule!AC30:AI30,">0") -> 0
B33: 1 | C33: ='Urmărire punctaj'!C4&COUNTIF('Urmărire punctaj'!$C$4:C4,'Urmărire punctaj'!C4) -> Franceză modernă1
B34: 2 | C34: ='Urmărire punctaj'!C5&COUNTIF('Urmărire punctaj'!$C$4:C5,'Urmărire punctaj'!C5) -> Programare avansată în Java1
B35: 3 | C35: ='Urmărire punctaj'!C6&COUNTIF('Urmărire punctaj'!$C$4:C6,'Urmărire punctaj'!C6) -> Spaniolă1
B36: 4 | C36: ='Urmărire punctaj'!C7&COUNTIF('Urmărire punctaj'!$C$4:C7,'Urmărire punctaj'!C7) -> Fizică teoretică1
B37: 5 | C37: ='Urmărire punctaj'!C8&COUNTIF('Urmărire punctaj'!$C$4:C8,'Urmărire punctaj'!C8) -> Franceză modernă2
B38: 6 | C38: ='Urmărire punctaj'!C9&COUNTIF('Urmărire punctaj'!$C$4:C9,'Urmărire punctaj'!C9) -> Franceză modernă3
B39: 7 | C39: ='Urmărire punctaj'!C10&COUNTIF('Urmărire punctaj'!$C$4:C10,'Urmărire punctaj'!C10) -> Compunere1
B40: 8 | C40: ='Urmărire punctaj'!C11&COUNTIF('Urmărire punctaj'!$C$4:C11,'Urmărire punctaj'!C11) -> Matematică 11
B41: 9 | C41: ='Urmărire punctaj'!C12&COUNTIF('Urmărire punctaj'!$C$4:C12,'Urmărire punctaj'!C12) -> Matematică 21
B42: 10 | C42: ='Urmărire punctaj'!C13&COUNTIF('Urmărire punctaj'!$C$4:C13,'Urmărire punctaj'!C13) -> Matematică 12
B43: 11 | C43: ='Urmărire punctaj'!C14&COUNTIF('Urmărire punctaj'!$C$4:C14,'Urmărire punctaj'!C14) -> Matematică 22
B44: 12 | C44: ='Urmărire punctaj'!C15&COUNTIF('Urmărire punctaj'!$C$4:C15,'Urmărire punctaj'!C15) -> 0
B45: 13 | C45: ='Urmărire punctaj'!C16&COUNTIF('Urmărire punctaj'!$C$4:C16,'Urmărire punctaj'!C16) -> 0
B46: 14 | C46: ='Urmărire punctaj'!C17&COUNTIF('Urmărire punctaj'!$C$4:C17,'Urmărire punctaj'!C17) -> 0
B47: 15 | C47: ='Urmărire punctaj'!C18&COUNTIF('Urmărire punctaj'!$C$4:C18,'Urmărire punctaj'!C18) -> 0
B48: 16 | C48: ='Urmărire punctaj'!C19&COUNTIF('Urmărire punctaj'!$C$4:C19,'Urmărire punctaj'!C19) -> 0
B49: 17 | C49: ='Urmărire punctaj'!C20&COUNTIF('Urmărire punctaj'!$C$4:C20,'Urmărire punctaj'!C20) -> 0
B50: 18 | C50: ='Urmărire punctaj'!C21&COUNTIF('Urmărire punctaj'!$C$4:C21,'Urmărire punctaj'!C21) -> 0
B51: 19 | C51: ='Urmărire punctaj'!C22&COUNTIF('Urmărire punctaj'!$C$4:C22,'Urmărire punctaj'!C22) -> 0
B52: 20 | C52: ='Urmărire punctaj'!C23&COUNTIF('Urmărire punctaj'!$C$4:C23,'Urmărire punctaj'!C23) -> 0
B53: 21 | C53: ='Urmărire punctaj'!C24&COUNTIF('Urmărire punctaj'!$C$4:C24,'Urmărire punctaj'!C24) -> 0
B54: 22 | C54: ='Urmărire punctaj'!C25&COUNTIF('Urmărire punctaj'!$C$4:C25,'Urmărire punctaj'!C25) -> 0
B55: 23 | C55: ='Urmărire punctaj'!C26&COUNTIF('Urmărire punctaj'!$C$4:C26,'Urmărire punctaj'!C26) -> 0
B56: 24 | C56: ='Urmărire punctaj'!C27&COUNTIF('Urmărire punctaj'!$C$4:C27,'Urmărire punctaj'!C27) -> 0
B57: 25 | C57: ='Urmărire punctaj'!C28&COUNTIF('Urmărire punctaj'!$C$4:C28,'Urmărire punctaj'!C28) -> 0
B58: 26 | C58: ='Urmărire punctaj'!C29&COUNTIF('Urmărire punctaj'!$C$4:C29,'Urmărire punctaj'!C29) -> 0
B59: 27 | C59: ='Urmărire punctaj'!C30&COUNTIF('Urmărire punctaj'!$C$4:C30,'Urmărire punctaj'!C30) -> 0
B60: 28 | C60: ='Urmărire punctaj'!C31&COUNTIF('Urmărire punctaj'!$C$4:C31,'Urmărire punctaj'!C31) -> 0
B61: 29 | C61: ='Urmărire punctaj'!C32&COUNTIF('Urmărire punctaj'!$C$4:C32,'Urmărire punctaj'!C32) -> 0
B62: 30 | C62: ='Urmărire punctaj'!C33&COUNTIF('Urmărire punctaj'!$C$4:C33,'Urmărire punctaj'!C33) -> 0
B63: 31 | C63: ='Urmărire punctaj'!C34&COUNTIF('Urmărire punctaj'!$C$4:C34,'Urmărire punctaj'!C34) -> 0
B64: 32 | C64: ='Urmărire punctaj'!C35&COUNTIF('Urmărire punctaj'!$C$4:C35,'Urmărire punctaj'!C35) -> 0
B65: 33 | C65: ='Urmărire punctaj'!C36&COUNTIF('Urmărire punctaj'!$C$4:C36,'Urmărire punctaj'!C36) -> 0
B66: 34 | C66: ='Urmărire punctaj'!C37&COUNTIF('Urmărire punctaj'!$C$4:C37,'Urmărire punctaj'!C37) -> 0
B67: 35 | C67: ='Urmărire punctaj'!C38&COUNTIF('Urmărire punctaj'!$C$4:C38,'Urmărire punctaj'!C38) -> 0
B68: 36 | C68: ='Urmărire punctaj'!C39&COUNTIF('Urmărire punctaj'!$C$4:C39,'Urmărire punctaj'!C39) -> 0
B69: 37 | C69: ='Urmărire punctaj'!C40&COUNTIF('Urmărire punctaj'!$C$4:C40,'Urmărire punctaj'!C40) -> 0
B70: 38 | C70: ='Urmărire punctaj'!C41&COUNTIF('Urmărire punctaj'!$C$4:C41,'Urmărire punctaj'!C41) -> 0
B71: 39 | C71: ='Urmărire punctaj'!C42&COUNTIF('Urmărire punctaj'!$C$4:C42,'Urmărire punctaj'!C42) -> 0
B72: 40 | C72: ='Urmărire punctaj'!C43&COUNTIF('Urmărire punctaj'!$C$4:C43,'Urmărire punctaj'!C43) -> 0
B73: 41 | C73: ='Urmărire punctaj'!C44&COUNTIF('Urmărire punctaj'!$C$4:C44,'Urmărire punctaj'!C44) -> 0
B74: 42 | C74: ='Urmărire punctaj'!C45&COUNTIF('Urmărire punctaj'!$C$4:C45,'Urmărire punctaj'!C45) -> 0
B75: 43 | C75: ='Urmărire punctaj'!C46&COUNTIF('Urmărire punctaj'!$C$4:C46,'Urmărire punctaj'!C46) -> 0
B76: 44 | C76: ='Urmărire punctaj'!C47&COUNTIF('Urmărire punctaj'!$C$4:C47,'Urmărire punctaj'!C47) -> 0
B77: 45 | C77: ='Urmărire punctaj'!C48&COUNTIF('Urmărire punctaj'!$C$4:C48,'Urmărire punctaj'!C48) -> 0
B78: 46 | C78: ='Urmărire punctaj'!C49&COUNTIF('Urmărire punctaj'!$C$4:C49,'Urmărire punctaj'!C49) -> 0
B79: 47 | C79: ='Urmărire punctaj'!C50&COUNTIF('Urmărire punctaj'!$C$4:C50,'Urmărire punctaj'!C50) -> 0
B80: 48 | C80: ='Urmărire punctaj'!C51&COUNTIF('Urmărire punctaj'!$C$4:C51,'Urmărire punctaj'!C51) -> 0
B81: 49 | C81: ='Urmărire punctaj'!C52&COUNTIF('Urmărire punctaj'!$C$4:C52,'Urmărire punctaj'!C52) -> 0
B82: 50 | C82: ='Urmărire punctaj'!C53&COUNTIF('Urmărire punctaj'!$C$4:C53,'Urmărire punctaj'!C53) -> 0
B83: 51 | C83: ='Urmărire punctaj'!C54&COUNTIF('Urmărire punctaj'!$C$4:C54,'Urmărire punctaj'!C54) -> 0
B84: 52 | C84: ='Urmărire punctaj'!C55&COUNTIF('Urmărire punctaj'!$C$4:C55,'Urmărire punctaj'!C55) -> 0
B85: 53 | C85: ='Urmărire punctaj'!C56&COUNTIF('Urmărire punctaj'!$C$4:C56,'Urmărire punctaj'!C56) -> 0
B86: 54 | C86: ='Urmărire punctaj'!C57&COUNTIF('Urmărire punctaj'!$C$4:C57,'Urmărire punctaj'!C57) -> 0
B87: 55 | C87: ='Urmărire punctaj'!C58&COUNTIF('Urmărire punctaj'!$C$4:C58,'Urmărire punctaj'!C58) -> 0
B88: 56 | C88: ='Urmărire punctaj'!C59&COUNTIF('Urmărire punctaj'!$C$4:C59,'Urmărire punctaj'!C59) -> 0
B89: 57 | C89: ='Urmărire punctaj'!C60&COUNTIF('Urmărire punctaj'!$C$4:C60,'Urmărire punctaj'!C60) -> 0
B90: 58 | C90: ='Urmărire punctaj'!C61&COUNTIF('Urmărire punctaj'!$C$4:C61,'Urmărire punctaj'!C61) -> 0
B91: 59 | C91: ='Urmărire punctaj'!C62&COUNTIF('Urmărire punctaj'!$C$4:C62,'Urmărire punctaj'!C62) -> 0
B92: 60 | C92: ='Urmărire punctaj'!C63&COUNTIF('Urmărire punctaj'!$C$4:C63,'Urmărire punctaj'!C63) -> 0
B93: 61 | C93: ='Urmărire punctaj'!C64&COUNTIF('Urmărire punctaj'!$C$4:C64,'Urmărire punctaj'!C64) -> 0
B94: 62 | C94: ='Urmărire punctaj'!C65&COUNTIF('Urmărire punctaj'!$C$4:C65,'Urmărire punctaj'!C65) -> 0
B95: 63 | C95: ='Urmărire punctaj'!C66&COUNTIF('Urmărire punctaj'!$C$4:C66,'Urmărire punctaj'!C66) -> 0
B96: 64 | C96: ='Urmărire punctaj'!C67&COUNTIF('Urmărire punctaj'!$C$4:C67,'Urmărire punctaj'!C67) -> 0
B97: 65 | C97: ='Urmărire punctaj'!C68&COUNTIF('Urmărire punctaj'!$C$4:C68,'Urmărire punctaj'!C68) -> 0
B98: 66 | C98: ='Urmărire punctaj'!C69&COUNTIF('Urmărire punctaj'!$C$4:C69,'Urmărire punctaj'!C69) -> 0
B99: 67 | C99: ='Urmărire punctaj'!C70&COUNTIF('Urmărire punctaj'!$C$4:C70,'Urmărire punctaj'!C70) -> 0
B100: 68 | C100: ='Urmărire punctaj'!C71&COUNTIF('Urmărire punctaj'!$C$4:C71,'Urmărire punctaj'!C71) -> 0
B101: 69 | C101: ='Urmărire punctaj'!C72&COUNTIF('Urmărire punctaj'!$C$4:C72,'Urmărire punctaj'!C72) -> 0
B102: 70 | C102: ='Urmărire punctaj'!C73&COUNTIF('Urmărire punctaj'!$C$4:C73,'Urmărire punctaj'!C73) -> 0
B103: 71 | C103: ='Urmărire punctaj'!C74&COUNTIF('Urmărire punctaj'!$C$4:C74,'Urmărire punctaj'!C74) -> 0
B104: 72 | C104: ='Urmărire punctaj'!C75&COUNTIF('Urmărire punctaj'!$C$4:C75,'Urmărire punctaj'!C75) -> 0
B105: 73 | C105: ='Urmărire punctaj'!C76&COUNTIF('Urmărire punctaj'!$C$4:C76,'Urmărire punctaj'!C76) -> 0
B106: 74 | C106: ='Urmărire punctaj'!C77&COUNTIF('Urmărire punctaj'!$C$4:C77,'Urmărire punctaj'!C77) -> 0
B107: 75 | C107: ='Urmărire punctaj'!C78&COUNTIF('Urmărire punctaj'!$C$4:C78,'Urmărire punctaj'!C78) -> 0
B108: 76 | C108: ='Urmărire punctaj'!C79&COUNTIF('Urmărire punctaj'!$C$4:C79,'Urmărire punctaj'!C79) -> 0
B109: 77 | C109: ='Urmărire punctaj'!C80&COUNTIF('Urmărire punctaj'!$C$4:C80,'Urmărire punctaj'!C80) -> 0
B110: 78 | C110: ='Urmărire punctaj'!C81&COUNTIF('Urmărire punctaj'!$C$4:C81,'Urmărire punctaj'!C81) -> 0
B111: 79 | C111: ='Urmărire punctaj'!C82&COUNTIF('Urmărire punctaj'!$C$4:C82,'Urmărire punctaj'!C82) -> 0
B112: 80 | C112: ='Urmărire punctaj'!C83&COUNTIF('Urmărire punctaj'!$C$4:C83,'Urmărire punctaj'!C83) -> 0
B113: 81 | C113: ='Urmărire punctaj'!C84&COUNTIF('Urmărire punctaj'!$C$4:C84,'Urmărire punctaj'!C84) -> 0
B114: 82 | C114: ='Urmărire punctaj'!C85&COUNTIF('Urmărire punctaj'!$C$4:C85,'Urmărire punctaj'!C85) -> 0
B115: 83 | C115: ='Urmărire punctaj'!C86&COUNTIF('Urmărire punctaj'!$C$4:C86,'Urmărire punctaj'!C86) -> 0
B116: 84 | C116: ='Urmărire punctaj'!C87&COUNTIF('Urmărire punctaj'!$C$4:C87,'Urmărire punctaj'!C87) -> 0
B117: 85 | C117: ='Urmărire punctaj'!C88&COUNTIF('Urmărire punctaj'!$C$4:C88,'Urmărire punctaj'!C88) -> 0
B118: 86 | C118: ='Urmărire punctaj'!C89&COUNTIF('Urmărire punctaj'!$C$4:C89,'Urmărire punctaj'!C89) -> 0
B119: 87 | C119: ='Urmărire punctaj'!C90&COUNTIF('Urmărire punctaj'!$C$4:C90,'Urmărire punctaj'!C90) -> 0
B120: 88 | C120: ='Urmărire punctaj'!C91&COUNTIF('Urmărire punctaj'!$C$4:C91,'Urmărire punctaj'!C91) -> 0
B121: 89 | C121: ='Urmărire punctaj'!C92&COUNTIF('Urmărire punctaj'!$C$4:C92,'Urmărire punctaj'!C92) -> 0
B122: 90 | C122: ='Urmărire punctaj'!C93&COUNTIF('Urmărire punctaj'!$C$4:C93,'Urmărire punctaj'!C93) -> 0
B123: 91 | C123: ='Urmărire punctaj'!C94&COUNTIF('Urmărire punctaj'!$C$4:C94,'Urmărire punctaj'!C94) -> 0
B124: 92 | C124: ='Urmărire punctaj'!C95&COUNTIF('Urmărire punctaj'!$C$4:C95,'Urmărire punctaj'!C95) -> 0
B125: 93 | C125: ='Urmărire punctaj'!C96&COUNTIF('Urmărire punctaj'!$C$4:C96,'Urmărire punctaj'!C96) -> 0
B126: 94 | C126: ='Urmărire punctaj'!C97&COUNTIF('Urmărire punctaj'!$C$4:C97,'Urmărire punctaj'!C97) -> 0
B127: 95 | C127: ='Urmărire punctaj'!C98&COUNTIF('Urmărire punctaj'!$C$4:C98,'Urmărire punctaj'!C98) -> 0
B128: 96 | C128: ='Urmărire punctaj'!C99&COUNTIF('Urmărire punctaj'!$C$4:C99,'Urmărire punctaj'!C99) -> 0
B129: 97 | C129: ='Urmărire punctaj'!C100&COUNTIF('Urmărire punctaj'!$C$4:C100,'Urmărire punctaj'!C100) -> 0
B130: 98 | C130: ='Urmărire punctaj'!C101&COUNTIF('Urmărire punctaj'!$C$4:C101,'Urmărire punctaj'!C101) -> 0
B131: 99 | C131: ='Urmărire punctaj'!C102&COUNTIF('Urmărire punctaj'!$C$4:C102,'Urmărire punctaj'!C102) -> 0
B132: 100 | C132: ='Urmărire punctaj'!C103&COUNTIF('Urmărire punctaj'!$C$4:C103,'Urmărire punctaj'!C103) -> 0
B133: 101 | C133: ='Urmărire punctaj'!C104&COUNTIF('Urmărire punctaj'!$C$4:C104,'Urmărire punctaj'!C104) -> 0
B134: 102 | C134: ='Urmărire punctaj'!C105&COUNTIF('Urmărire punctaj'!$C$4:C105,'Urmărire punctaj'!C105) -> 0
B135: 103 | C135: ='Urmărire punctaj'!C106&COUNTIF('Urmărire punctaj'!$C$4:C106,'Urmărire punctaj'!C106) -> 0
B136: 104 | C136: ='Urmărire punctaj'!C107&COUNTIF('Urmărire punctaj'!$C$4:C107,'Urmărire punctaj'!C107) -> 0
B137: 105 | C137: ='Urmărire punctaj'!C108&COUNTIF('Urmărire punctaj'!$C$4:C108,'Urmărire punctaj'!C108) -> 0
B138: 106 | C138: ='Urmărire punctaj'!C109&COUNTIF('Urmărire punctaj'!$C$4:C109,'Urmărire punctaj'!C109) -> 0
B139: 107 | C139: ='Urmărire punctaj'!C110&COUNTIF('Urmărire punctaj'!$C$4:C110,'Urmărire punctaj'!C110) -> 0
B140: 108 | C140: ='Urmărire punctaj'!C111&COUNTIF('Urmărire punctaj'!$C$4:C111,'Urmărire punctaj'!C111) -> 0
B141: 109 | C141: ='Urmărire punctaj'!C112&COUNTIF('Urmărire punctaj'!$C$4:C112,'Urmărire punctaj'!C112) -> 0
B142: 110 | C142: ='Urmărire punctaj'!C113&COUNTIF('Urmărire punctaj'!$C$4:C113,'Urmărire punctaj'!C113) -> 0
B143: 111 | C143: ='Urmărire punctaj'!C114&COUNTIF('Urmărire punctaj'!$C$4:C114,'Urmărire punctaj'!C114) -> 0
B144: 112 | C144: ='Urmărire punctaj'!C115&COUNTIF('Urmărire punctaj'!$C$4:C115,'Urmărire punctaj'!C115) -> 0
B145: 113 | C145: ='Urmărire punctaj'!C116&COUNTIF('Urmărire punctaj'!$C$4:C116,'Urmărire punctaj'!C116) -> 0
B146: 114 | C146: ='Urmărire punctaj'!C117&COUNTIF('Urmărire punctaj'!$C$4:C117,'Urmărire punctaj'!C117) -> 0
B147: 115 | C147: ='Urmărire punctaj'!C118&COUNTIF('Urmărire punctaj'!$C$4:C118,'Urmărire punctaj'!C118) -> 0
B148: 116 | C148: ='Urmărire punctaj'!C119&COUNTIF('Urmărire punctaj'!$C$4:C119,'Urmărire punctaj'!C119) -> 0
B149: 117 | C149: ='Urmărire punctaj'!C120&COUNTIF('Urmărire punctaj'!$C$4:C120,'Urmărire punctaj'!C120) -> 0
B150: 118 | C150: ='Urmărire punctaj'!C121&COUNTIF('Urmărire punctaj'!$C$4:C121,'Urmărire punctaj'!C121) -> 0
B151: 119 | C151: ='Urmărire punctaj'!C122&COUNTIF('Urmărire punctaj'!$C$4:C122,'Urmărire punctaj'!C122) -> 0
B152: 120 | C152: ='Urmărire punctaj'!C123&COUNTIF('Urmărire punctaj'!$C$4:C123,'Urmărire punctaj'!C123) -> 0
B153: 121 | C153: ='Urmărire punctaj'!C124&COUNTIF('Urmărire punctaj'!$C$4:C124,'Urmărire punctaj'!C124) -> 0
B154: 122 | C154: ='Urmărire punctaj'!C125&COUNTIF('Urmărire punctaj'!$C$4:C125,'Urmărire punctaj'!C125) -> 0
B155: 123 | C155: ='Urmărire punctaj'!C126&COUNTIF('Urmărire punctaj'!$C$4:C126,'Urmărire punctaj'!C126) -> 0
B156: 124 | C156: ='Urmărire punctaj'!C127&COUNTIF('Urmărire punctaj'!$C$4:C127,'Urmărire punctaj'!C127) -> 0
B157: 125 | C157: ='Urmărire punctaj'!C128&COUNTIF('Urmărire punctaj'!$C$4:C128,'Urmărire punctaj'!C128) -> 0
B158: 126 | C158: ='Urmărire punctaj'!C129&COUNTIF('Urmărire punctaj'!$C$4:C129,'Urmărire punctaj'!C129) -> 0
B159: 127 | C159: ='Urmărire punctaj'!C130&COUNTIF('Urmărire punctaj'!$C$4:C130,'Urmărire punctaj'!C130) -> 0
B160: 128 | C160: ='Urmărire punctaj'!C131&COUNTIF('Urmărire punctaj'!$C$4:C131,'Urmărire punctaj'!C131) -> 0
B161: 129 | C161: ='Urmărire punctaj'!C132&COUNTIF('Urmărire punctaj'!$C$4:C132,'Urmărire punctaj'!C132) -> 0
B162: 130 | C162: ='Urmărire punctaj'!C133&COUNTIF('Urmărire punctaj'!$C$4:C133,'Urmărire punctaj'!C133) -> 0
B163: 131 | C163: ='Urmărire punctaj'!C134&COUNTIF('Urmărire punctaj'!$C$4:C134,'Urmărire punctaj'!C134) -> 0
B164: 132 | C164: ='Urmărire punctaj'!C135&COUNTIF('Urmărire punctaj'!$C$4:C135,'Urmărire punctaj'!C135) -> 0
B165: 133 | C165: ='Urmărire punctaj'!C136&COUNTIF('Urmărire punctaj'!$C$4:C136,'Urmărire punctaj'!C136) -> 0
B166: 134 | C166: ='Urmărire punctaj'!C137&COUNTIF('Urmărire punctaj'!$C$4:C137,'Urmărire punctaj'!C137) -> 0
B167: 135 | C167: ='Urmărire punctaj'!C138&COUNTIF('Urmărire punctaj'!$C$4:C138,'Urmărire punctaj'!C138) -> 0
B168: 136 | C168: ='Urmărire punctaj'!C139&COUNTIF('Urmărire punctaj'!$C$4:C139,'Urmărire punctaj'!C139) -> 0
B169: 137 | C169: ='Urmărire punctaj'!C140&COUNTIF('Urmărire punctaj'!$C$4:C140,'Urmărire punctaj'!C140) -> 0
B170: 138 | C170: ='Urmărire punctaj'!C141&COUNTIF('Urmărire punctaj'!$C$4:C141,'Urmărire punctaj'!C141) -> 0
B171: 139 | C171: ='Urmărire punctaj'!C142&COUNTIF('Urmărire punctaj'!$C$4:C142,'Urmărire punctaj'!C142) -> 0
B172: 140 | C172: ='Urmărire punctaj'!C143&COUNTIF('Urmărire punctaj'!$C$4:C143,'Urmărire punctaj'!C143) -> 0
B173: 141 | C173: ='Urmărire punctaj'!C144&COUNTIF('Urmărire punctaj'!$C$4:C144,'Urmărire punctaj'!C144) -> 0
B174: 142 | C174: ='Urmărire punctaj'!C145&COUNTIF('Urmărire punctaj'!$C$4:C145,'Urmărire punctaj'!C145) -> 0
B175: 143 | C175: ='Urmărire punctaj'!C146&COUNTIF('Urmărire punctaj'!$C$4:C146,'Urmărire punctaj'!C146) -> 0
B176: 144 | C176: ='Urmărire punctaj'!C147&COUNTIF('Urmărire punctaj'!$C$4:C147,'Urmărire punctaj'!C147) -> 0
B177: 145 | C177: ='Urmărire punctaj'!C148&COUNTIF('Urmărire punctaj'!$C$4:C148,'Urmărire punctaj'!C148) -> 0
B178: 146 | C178: ='Urmărire punctaj'!C149&COUNTIF('Urmărire punctaj'!$C$4:C149,'Urmărire punctaj'!C149) -> 0
B179: 147 | C179: ='Urmărire punctaj'!C150&COUNTIF('Urmărire punctaj'!$C$4:C150,'Urmărire punctaj'!C150) -> 0
B180: 148 | C180: ='Urmărire punctaj'!C151&COUNTIF('Urmărire punctaj'!$C$4:C151,'Urmărire punctaj'!C151) -> 0
B181: 149 | C181: ='Urmărire punctaj'!C152&COUNTIF('Urmărire punctaj'!$C$4:C152,'Urmărire punctaj'!C152) -> 0
B182: 150 | C182: ='Urmărire punctaj'!C153&COUNTIF('Urmărire punctaj'!$C$4:C153,'Urmărire punctaj'!C153) -> 0
B183: 151 | C183: ='Urmărire punctaj'!C154&COUNTIF('Urmărire punctaj'!$C$4:C154,'Urmărire punctaj'!C154) -> 0
B184: 152 | C184: ='Urmărire punctaj'!C155&COUNTIF('Urmărire punctaj'!$C$4:C155,'Urmărire punctaj'!C155) -> 0
B185: 153 | C185: ='Urmărire punctaj'!C156&COUNTIF('Urmărire punctaj'!$C$4:C156,'Urmărire punctaj'!C156) -> 0
B186: 154 | C186: ='Urmărire punctaj'!C157&COUNTIF('Urmărire punctaj'!$C$4:C157,'Urmărire punctaj'!C157) -> 0
B187: 155 | C187: ='Urmărire punctaj'!C158&COUNTIF('Urmărire punctaj'!$C$4:C158,'Urmărire punctaj'!C158) -> 0
B188: 156 | C188: ='Urmărire punctaj'!C159&COUNTIF('Urmărire punctaj'!$C$4:C159,'Urmărire punctaj'!C159) -> 0
B189: 157 | C189: ='Urmărire punctaj'!C160&COUNTIF('Urmărire punctaj'!$C$4:C160,'Urmărire punctaj'!C160) -> 0
B190: 158 | C190: ='Urmărire punctaj'!C161&COUNTIF('Urmărire punctaj'!$C$4:C161,'Urmărire punctaj'!C161) -> 0
B191: 159 | C191: ='Urmărire punctaj'!C162&COUNTIF('Urmărire punctaj'!$C$4:C162,'Urmărire punctaj'!C162) -> 0
B192: 160 | C192: ='Urmărire punctaj'!C163&COUNTIF('Urmărire punctaj'!$C$4:C163,'Urmărire punctaj'!C163) -> 0
B193: 161 | C193: ='Urmărire punctaj'!C164&COUNTIF('Urmărire punctaj'!$C$4:C164,'Urmărire punctaj'!C164) -> 0
B194: 162 | C194: ='Urmărire punctaj'!C165&COUNTIF('Urmărire punctaj'!$C$4:C165,'Urmărire punctaj'!C165) -> 0
B195: 163 | C195: ='Urmărire punctaj'!C166&COUNTIF('Urmărire punctaj'!$C$4:C166,'Urmărire punctaj'!C166) -> 0
B196: 164 | C196: ='Urmărire punctaj'!C167&COUNTIF('Urmărire punctaj'!$C$4:C167,'Urmărire punctaj'!C167) -> 0
B197: 165 | C197: ='Urmărire punctaj'!C168&COUNTIF('Urmărire punctaj'!$C$4:C168,'Urmărire punctaj'!C168) -> 0
B198: 166 | C198: ='Urmărire punctaj'!C169&COUNTIF('Urmărire punctaj'!$C$4:C169,'Urmărire punctaj'!C169) -> 0
B199: 167 | C199: ='Urmărire punctaj'!C170&COUNTIF('Urmărire punctaj'!$C$4:C170,'Urmărire punctaj'!C170) -> 0
B200: 168 | C200: ='Urmărire punctaj'!C171&COUNTIF('Urmărire punctaj'!$C$4:C171,'Urmărire punctaj'!C171) -> 0
B201: 169 | C201: ='Urmărire punctaj'!C172&COUNTIF('Urmărire punctaj'!$C$4:C172,'Urmărire punctaj'!C172) -> 0
B202: 170 | C202: ='Urmărire punctaj'!C173&COUNTIF('Urmărire punctaj'!$C$4:C173,'Urmărire punctaj'!C173) -> 0
B203: 171 | C203: ='Urmărire punctaj'!C174&COUNTIF('Urmărire punctaj'!$C$4:C174,'Urmărire punctaj'!C174) -> 0
... 454 more rows
